{"text_format":"1","workbook":"xlsx","n_sheets":1,"sheets":["List1"],"not_rendered":{"charts":0,"images":2,"macros":1,"external_links":0,"defined_names":0,"comments":0,"pivot_tables":0},"unopened":[],"bounds":{"document_bytes":16777216,"sheet_cells":100000,"rows_first":2000,"rows_last":500,"rows_between":2000,"halvings":0,"cell_chars":16384,"cell_head_chars":4096},"cells_cut":0,"cells_raw":0,"read":"whole","date_system":"1900"}

{"sheet":"List1","index":0,"n_rows":53,"n_cols":24,"rows_kept":53,"cut":false,"hidden":false,"merged":[[52,0,52,1],[52,2,52,5],[46,0,47,5],[48,0,49,5],[50,0,50,5],[51,0,51,1],[51,2,51,5],[43,0,43,1],[43,2,43,5],[44,0,44,1],[44,2,44,5],[45,0,45,1],[45,2,45,5],[40,0,40,5],[13,0,14,0],[19,0,20,0],[27,0,28,0],[42,0,42,1],[42,2,42,5],[41,0,41,1],[41,2,41,5],[32,3,32,5],[33,3,33,5],[34,3,34,5],[35,3,35,5],[36,3,36,5],[29,3,29,5],[30,3,30,5],[31,3,31,5],[0,0,0,5],[3,0,3,2],[3,3,3,5],[1,0,2,5],[27,3,28,5],[21,3,21,5],[19,3,20,5],[22,3,22,5],[13,3,14,5],[15,3,15,5],[16,3,16,5],[17,3,17,5],[23,3,23,5],[24,3,24,5],[25,3,25,5],[26,3,26,5],[37,3,37,5],[38,3,38,5],[39,3,39,5],[10,0,11,5],[4,3,4,5],[5,3,5,5],[6,3,6,5],[7,3,7,5],[8,3,8,5],[9,3,9,5],[4,0,4,2],[5,0,5,2],[6,0,6,2],[7,0,7,2],[8,0,8,2],[9,0,9,2]]}
[]
["VYÚČTOVÁNÍ VÝDAJŮ"]
[]
["Registrační číslo projektu",null,null,"CZ.03.02.02/00/24_068/0005442"]
["Název projektu",null,null,"Rozvoj ambulantních a terénních služeb na území hl. m. Prahy"]
["Název příjemce podpory",null,null,"Hlavní město Praha"]
["Název subjektu čerpajícího dotaci"]
["Číslo smlouvy o poskytnutí dotace"]
["Identifikátor sociální služby"]
["Monitorovací období"]
[]
[]
["Pořadové číslo záznamu","Druh vyúčtovaného nákladu","Částka výdaje v projektu","Datum vzniku nákladu","Datum úhrady výdaje","Číslo účetního dokladu v účetnictví"]
[null,"1_ OSOBNÍ NÁKLADY ",{"$f":"SUMIFS($C$14:$C$1956, $X$14:$X$1956, $X14&\"*\", $Y$14:$Y$1956, \"x\")","v":0},null,null,null,null,null,null,null,null,null,null,null,null,null,null,null,null,null,null,null,null,"1_"]
[null,"1_1_ Pracovní smlouvy",{"$f":"SUMIFS($C$14:$C$1956, $X$14:$X$1956, $X15&\"*\", $Y$14:$Y$1956, \"x\")","v":0},null,null,null,null,null,null,null,null,null,null,null,null,null,null,null,null,null,null,null,null,"1_1_"]
[null,"1_2_ Dohody o pracovní činnosti",{"$f":"SUMIFS($C$14:$C$1956, $X$14:$X$1956, $X16&\"*\", $Y$14:$Y$1956, \"x\")","v":0},null,null,null,null,null,null,null,null,null,null,null,null,null,null,null,null,null,null,null,null,"1_2_"]
[null,"1_3_ Dohody o provedení práce",{"$f":"SUMIFS($C$14:$C$1956, $X$14:$X$1956, $X17&\"*\", $Y$14:$Y$1956, \"x\")","v":0},null,null,null,null,null,null,null,null,null,null,null,null,null,null,null,null,null,null,null,null,"1_3_"]
[null,"1_4_ Jiné osobní náklady",{"$f":"SUMIFS($C$14:$C$1956, $X$14:$X$1956, $X18&\"*\", $Y$14:$Y$1956, \"x\")","v":0},null,null,null,null,null,null,null,null,null,null,null,null,null,null,null,null,null,null,null,null,"1_4_"]
[null,"1_5_ Nákup služeb",{"$f":"SUMIFS($C$14:$C$1956, $X$14:$X$1956, $X19&\"*\", $Y$14:$Y$1956, \"x\")","v":0},null,null,null,null,null,null,null,null,null,null,null,null,null,null,null,null,null,null,null,null,"1_5_"]
[null,"2_ Provozní náklady",{"$f":"SUMIFS($C$14:$C$1955, $X$14:$X$1955, $X20&\"*\", $Y$14:$Y$1955, \"x\")","v":0},null,null,null,null,null,null,null,null,null,null,null,null,null,null,null,null,null,null,null,null,"2_"]
[null,"2_1_ Dlouhodobý majetek",{"$f":"SUMIFS($C$14:$C$1955, $X$14:$X$1955, $X21&\"*\", $Y$14:$Y$1955, \"x\")","v":0},null,null,null,null,null,null,null,null,null,null,null,null,null,null,null,null,null,null,null,null,"2_1_"]
[null,"2_1_1_ Dlouhodobý nehmotný majetek do 60 tis. Kč",{"$f":"SUMIFS($C$14:$C$1956, $X$14:$X$1956, $X22&\"*\", $Y$14:$Y$1956, \"x\")","v":0},null,null,null,null,null,null,null,null,null,null,null,null,null,null,null,null,null,null,null,null,"2_1_1_"]
[null,"2_1_2_ Dlouhodobý hmotný majetek do 80 tis. Kč",{"$f":"SUMIFS($C$14:$C$1955, $X$14:$X$1955, $X23&\"*\", $Y$14:$Y$1955, \"x\")","v":0},null,null,null,null,null,null,null,null,null,null,null,null,null,null,null,null,null,null,null,null,"2_1_2_"]
[null,"2_2_ Potraviny",{"$f":"SUMIFS($C$14:$C$1955, $X$14:$X$1955, $X24&\"*\", $Y$14:$Y$1955, \"x\")","v":0},null,null,null,null,null,null,null,null,null,null,null,null,null,null,null,null,null,null,null,null,"2_2_"]
[null,"2_3_ Kancelářské potřeby",{"$f":"SUMIFS($C$14:$C$1955, $X$14:$X$1955, $X25&\"*\", $Y$14:$Y$1955, \"x\")","v":0},null,null,null,null,null,null,null,null,null,null,null,null,null,null,null,null,null,null,null,null,"2_3_"]
[null,"2_4_ Pohonné hmoty",{"$f":"SUMIFS($C$14:$C$1955, $X$14:$X$1955, $X26&\"*\", $Y$14:$Y$1955, \"x\")","v":0},null,null,null,null,null,null,null,null,null,null,null,null,null,null,null,null,null,null,null,null,"2_4_"]
[null,"2_5_ Jiné spotřebované nákupy",{"$f":"SUMIFS($C$14:$C$1955, $X$14:$X$1955, $X27&\"*\", $Y$14:$Y$1955, \"x\")","v":0},null,null,null,null,null,null,null,null,null,null,null,null,null,null,null,null,null,null,null,null,"2_5_"]
[null,"2_6_ Služby",{"$f":"SUMIFS($C$14:$C$1955, $X$14:$X$1955, $X28&\"*\", $Y$14:$Y$1955, \"x\")","v":0},null,null,null,null,null,null,null,null,null,null,null,null,null,null,null,null,null,null,null,null,"2_6_"]
[null,"2_6_1_ Energie",{"$f":"SUMIFS($C$14:$C$1955, $X$14:$X$1955, $X29&\"*\", $Y$14:$Y$1955, \"x\")","v":0},null,null,null,null,null,null,null,null,null,null,null,null,null,null,null,null,null,null,null,null,"2_6_1_"]
[null,"2_6_2_ Telefony, internet, poštovné, ostatní spoje",{"$f":"SUMIFS($C$14:$C$1955, $X$14:$X$1955, $X30&\"*\", $Y$14:$Y$1955, \"x\")","v":0},null,null,null,null,null,null,null,null,null,null,null,null,null,null,null,null,null,null,null,null,"2_6_2_"]
[null,"2_6_3_  Nájemné",{"$f":"SUMIFS($C$14:$C$1955, $X$14:$X$1955, $X31&\"*\", $Y$14:$Y$1955, \"x\")","v":0},null,null,null,null,null,null,null,null,null,null,null,null,null,null,null,null,null,null,null,null,"2_6_3_"]
[null,"2_6_4_ Právní a ekonomické služby",{"$f":"SUMIFS($C$14:$C$1955, $X$14:$X$1955, $X32&\"*\", $Y$14:$Y$1955, \"x\")","v":0},null,null,null,null,null,null,null,null,null,null,null,null,null,null,null,null,null,null,null,null,"2_6_4_"]
[null,"2_6_5_ Školení a kurzy",{"$f":"SUMIFS($C$14:$C$1955, $X$14:$X$1955, $X33&\"*\", $Y$14:$Y$1955, \"x\")","v":0},null,null,null,null,null,null,null,null,null,null,null,null,null,null,null,null,null,null,null,null,"2_6_5_"]
[null,"2_6_6_ Opravy a udržování",{"$f":"SUMIFS($C$14:$C$1955, $X$14:$X$1955, $X34&\"*\", $Y$14:$Y$1955, \"x\")","v":0},null,null,null,null,null,null,null,null,null,null,null,null,null,null,null,null,null,null,null,null,"2_6_6_"]
[null,"2_6_7_ Cestovní náhrady",{"$f":"SUMIFS($C$14:$C$1955, $X$14:$X$1955, $X35&\"*\", $Y$14:$Y$1955, \"x\")","v":0},null,null,null,null,null,null,null,null,null,null,null,null,null,null,null,null,null,null,null,null,"2_6_7_"]
[null,"2_6_8_ Pracovníci v přímé péči (mimo prac. poměr, DPP, DPČ)",{"$f":"SUMIFS($C$14:$C$1954, $X$14:$X$1954, $X36&\"*\", $Y$14:$Y$1954, \"x\")","v":0},null,null,null,null,null,null,null,null,null,null,null,null,null,null,null,null,null,null,null,null,"2_6_8_"]
[null,"2_6_9_ Ostatní pracovníci (mimo prac. poměr, DPP, DPČ)",{"$f":"SUMIFS($C$14:$C$1954, $X$14:$X$1954, $X37&\"*\", $Y$14:$Y$1954, \"x\")","v":0},null,null,null,null,null,null,null,null,null,null,null,null,null,null,null,null,null,null,null,null,"2_6_9_"]
[null,"2_6_10_ Jiné",{"$f":"SUMIFS($C$14:$C$1954, $X$14:$X$1954, $X38&\"*\", $Y$14:$Y$1954, \"x\")","v":0},null,null,null,null,null,null,null,null,null,null,null,null,null,null,null,null,null,null,null,null,"2_6_10_"]
[null,"2_7_ Odpisy",{"$f":"SUMIFS($C$14:$C$1954, $X$14:$X$1954, $X39&\"*\", $Y$14:$Y$1954, \"x\")","v":0},null,null,null,null,null,null,null,null,null,null,null,null,null,null,null,null,null,null,null,null,"2_7_"]
[null,"2_8_ Ostatní náklady",{"$f":"SUMIFS($C$14:$C$1954, $X$14:$X$1954, $X40&\"*\", $Y$14:$Y$1954, \"x\")","v":0},null,null,null,null,null,null,null,null,null,null,null,null,null,null,null,null,null,null,null,null,"2_8_"]
["SOUHRN VYÚČTOVÁNÍ VÝDAJŮ"]
["NÁKLADY CELKEM",null,{"$f":"SUM(C43:C44)","v":0}]
["OSOBNÍ NÁKLADY CELKEM",null,{"$f":"SUMIFS($C$14:$C$1956, $X$14:$X$1956, $X14&\"*\", $Y$14:$Y$1956, \"x\")","v":0}]
["PROVOZNÍ NÁKLADY CELKEM",null,{"$f":"SUMIFS($C$14:$C$1955, $X$14:$X$1955, $X20&\"*\", $Y$14:$Y$1955, \"x\")","v":0}]
["DLOUHODOBÝ MAJETEK",null,{"$f":"SUMIFS($C$14:$C$1955, $X$14:$X$1955, $X21&\"*\", $Y$14:$Y$1955, \"x\")","v":0}]
["SLUŽBY",null,{"$f":"SUMIFS($C$14:$C$1955, $X$14:$X$1955, $X28&\"*\", $Y$14:$Y$1955, \"x\")","v":0}]
[]
[]
["Prohlášení:"]
[]
["Prohlašuji, že všechny transakce jsou věrně zachyceny v účetnictví; všechny doklady uvedené v tabulce s vyúčtováním výdajů splňují požadavky formální správnosti účetních dokladů stanovené v § 11 zákona č. 563/1991 Sb., o účetnictví ve znění pozdějších předpisů; byla provedena úhrada všech účetních dokladů uvedených v tabulce s vyúčtováním výdajů."]
["Jméno a příjmení statutárního zástupce, resp. osoby oprávněné jednat za subjekt čerpající dotaci"]
["Datum a podpis statutárního zástupce, resp. osoby oprávněné jednat za subjekt čerpající dotaci"]